Department Family,Entity,Date,Expense Type,Expense Area,Supplier,Supplier Type,Transaction Number,Amount,Description,Expenditure Type
Land Registry,Land Registry,12/06/2012,Stationery Local Purchases,Dir: HR,Banner Business Services Ltd,Large,904593,19.7,Stationery,Administration
Land Registry,Land Registry,12/06/2012,Stationery National Contracts,Birkenhead Office,Banner Business Services Ltd,Large,904593,5778.17,Stationery,Administration
Land Registry,Land Registry,12/06/2012,Stationery National Contracts,Central Facilities Management Team,Banner Business Services Ltd,Large,904593,13.61,Stationery,Administration
Land Registry,Land Registry,12/06/2012,Stationery National Contracts,Central Operations Group,Banner Business Services Ltd,Large,904593,60,Stationery,Administration
Land Registry,Land Registry,12/06/2012,Stationery National Contracts,Central RFS,Banner Business Services Ltd,Large,904593,355.12,Stationery,Administration
Land Registry,Land Registry,12/06/2012,Stationery National Contracts,Corp Procurement,Banner Business Services Ltd,Large,904593,54.93,Stationery,Administration
Land Registry,Land Registry,12/06/2012,Stationery National Contracts,Coventry Office,Banner Business Services Ltd,Large,904593,1568.58,Stationery,Administration
Land Registry,Land Registry,12/06/2012,Stationery National Contracts,Croydon Office,Banner Business Services Ltd,Large,904593,2298.92,Stationery,Administration
Land Registry,Land Registry,12/06/2012,Stationery National Contracts,Durham Office,Banner Business Services Ltd,Large,904593,4324.52,Stationery,Administration
Land Registry,Land Registry,12/06/2012,Stationery National Contracts,External Solutions Group,Banner Business Services Ltd,Large,904593,200.22,Stationery,Administration
Land Registry,Land Registry,12/06/2012,Stationery National Contracts,Finance Group,Banner Business Services Ltd,Large,904593,167.26,Stationery,Administration
Land Registry,Land Registry,12/06/2012,Stationery National Contracts,Fylde Office,Banner Business Services Ltd,Large,904593,2704.72,Stationery,Administration
Land Registry,Land Registry,12/06/2012,Stationery National Contracts,Gloucester Office,Banner Business Services Ltd,Large,904593,5190.8,Stationery,Administration
Land Registry,Land Registry,12/06/2012,Stationery National Contracts,Governance & Policy,Banner Business Services Ltd,Large,904593,114.58,Stationery,Administration
Land Registry,Land Registry,12/06/2012,Stationery National Contracts,HR,Banner Business Services Ltd,Large,904593,190.58,Stationery,Administration
Land Registry,Land Registry,12/06/2012,Stationery National Contracts,Hull Office,Banner Business Services Ltd,Large,904593,2585.71,Stationery,Administration
Land Registry,Land Registry,12/06/2012,Stationery National Contracts,Independent Complaints Reviewer,Banner Business Services Ltd,Large,904593,35.34,Stationery,Administration
Land Registry,Land Registry,12/06/2012,Stationery National Contracts,Internal Solutions Group,Banner Business Services Ltd,Large,904593,302.25,Stationery,Administration
Land Registry,Land Registry,12/06/2012,Stationery National Contracts,International Unit,Banner Business Services Ltd,Large,904593,205.5,Stationery,Administration
Land Registry,Land Registry,12/06/2012,Stationery National Contracts,IS Service Delivery,Banner Business Services Ltd,Large,904593,2554.92,Stationery,Administration
Land Registry,Land Registry,12/06/2012,Stationery National Contracts,Land Charges,Banner Business Services Ltd,Large,904593,374.94,Stationery,Administration
Land Registry,Land Registry,12/06/2012,Stationery National Contracts,Learning and Development,Banner Business Services Ltd,Large,904593,71.79,Stationery,Administration
Land Registry,Land Registry,12/06/2012,Stationery National Contracts,Leicester Office,Banner Business Services Ltd,Large,904593,2252.18,Stationery,Administration
Land Registry,Land Registry,12/06/2012,Stationery National Contracts,Nottingham Office,Banner Business Services Ltd,Large,904593,3502.1,Stationery,Administration
Land Registry,Land Registry,12/06/2012,Stationery National Contracts,Peterborough Office,Banner Business Services Ltd,Large,904593,1863.83,Stationery,Administration
Land Registry,Land Registry,12/06/2012,Stationery National Contracts,Plymouth Office,Banner Business Services Ltd,Large,904593,1802.85,Stationery,Administration
Land Registry,Land Registry,12/06/2012,Stationery National Contracts,Projects and Programme Centre,Banner Business Services Ltd,Large,904593,27.59,Stationery,Administration
Land Registry,Land Registry,12/06/2012,Stationery National Contracts,Registration Legal Services Group,Banner Business Services Ltd,Large,904593,100.88,Stationery,Administration
Land Registry,Land Registry,12/06/2012,Stationery National Contracts,Research & Data Mining,Banner Business Services Ltd,Large,904593,17.49,Stationery,Administration
Land Registry,Land Registry,12/06/2012,Stationery National Contracts,Telford Office,Banner Business Services Ltd,Large,904593,1866.63,Stationery,Administration
Land Registry,Land Registry,12/06/2012,Stationery National Contracts,Wales Office,Banner Business Services Ltd,Large,904593,4667.46,Stationery,Administration
Land Registry,Land Registry,12/06/2012,Stationery National Contracts,Weymouth Office,Banner Business Services Ltd,Large,904593,2421.52,Stationery,Administration
Land Registry,Land Registry,12/06/2012,Waste Disposal,Central Facilities Management Team,Banner Business Services Ltd,Large,904593,12202.55,Waste Disposal,Administration
Land Registry,Land Registry,20/12/2012,Rent Payable,RFS11 - Plymouth,Canada Life Ltd,Large,911933,39012,Rent Payable,Administration
Land Registry,Land Registry,12/12/2012,Electricity,Birkenhead Office,Carillion Services Ltd,Large,908544,3712.23,Electricity,Administration
Land Registry,Land Registry,12/12/2012,Electricity,Central Facilities Management Team,Carillion Services Ltd,Large,908544,99.57,Electricity,Administration
Land Registry,Land Registry,12/12/2012,Electricity,Coventry Office,Carillion Services Ltd,Large,908544,5397.28,Electricity,Administration
Land Registry,Land Registry,12/12/2012,Electricity,Croydon Office,Carillion Services Ltd,Large,908544,7624.11,Electricity,Administration
Land Registry,Land Registry,12/12/2012,Electricity,Croydon Sub-Office,Carillion Services Ltd,Large,908544,204.54,Electricity,Administration
Land Registry,Land Registry,12/12/2012,Electricity,Dir: Finance,Carillion Services Ltd,Large,908544,714.84,Electricity,Administration
Land Registry,Land Registry,12/12/2012,Electricity,Durham Office,Carillion Services Ltd,Large,908544,4007,Electricity,Administration
Land Registry,Land Registry,12/12/2012,Electricity,Fylde Office,Carillion Services Ltd,Large,908544,3954.22,Electricity,Administration
Land Registry,Land Registry,12/12/2012,Electricity,Gloucester Computer Centre,Carillion Services Ltd,Large,908544,22749.47,Electricity,Administration
Land Registry,Land Registry,12/12/2012,Electricity,Gloucester Office,Carillion Services Ltd,Large,908544,4275.02,Electricity,Administration
Land Registry,Land Registry,12/12/2012,Electricity,Governance & Policy,Carillion Services Ltd,Large,908544,36682.97,Electricity,Administration
Land Registry,Land Registry,12/12/2012,Electricity,Hull Office,Carillion Services Ltd,Large,908544,5059.88,Electricity,Administration
Land Registry,Land Registry,12/12/2012,Electricity,Leicester Office,Carillion Services Ltd,Large,908544,3213.22,Electricity,Administration
Land Registry,Land Registry,12/12/2012,Electricity,Nottingham Office,Carillion Services Ltd,Large,908544,8076.14,Electricity,Administration
Land Registry,Land Registry,12/12/2012,Electricity,Peterborough Office,Carillion Services Ltd,Large,908544,6825.76,Electricity,Administration
Land Registry,Land Registry,12/12/2012,Electricity,RFS1 - Telford,Carillion Services Ltd,Large,908544,135.65,Electricity,Administration
Land Registry,Land Registry,12/12/2012,Electricity,RFS15 - Plymouth Drakes Hill Court,Carillion Services Ltd,Large,908544,1406.15,Electricity,Administration
Land Registry,Land Registry,12/12/2012,Electricity,RFS5 - Durham Belmont,Carillion Services Ltd,Large,908544,344.16,Electricity,Administration
Land Registry,Land Registry,12/12/2012,Electricity,Telford Office,Carillion Services Ltd,Large,908544,4812.87,Electricity,Administration
Land Registry,Land Registry,12/12/2012,Electricity,Wales Office,Carillion Services Ltd,Large,908544,4526.13,Electricity,Administration
Land Registry,Land Registry,12/12/2012,Electricity,Weymouth Office,Carillion Services Ltd,Large,908544,3618.97,Electricity,Administration
Land Registry,Land Registry,12/12/2012,FF&F:Maintenance,Birkenhead Office,Carillion Services Ltd,Large,908544,182.32,"Furniture, Fixtures & Fittings:Maintenance",Administration
Land Registry,Land Registry,12/12/2012,FF&F:Maintenance,Coventry Office,Carillion Services Ltd,Large,908544,799.37,"Furniture, Fixtures & Fittings:Maintenance",Administration
Land Registry,Land Registry,12/12/2012,FF&F:Maintenance,Croydon Office,Carillion Services Ltd,Large,908544,182.32,"Furniture, Fixtures & Fittings:Maintenance",Administration
Land Registry,Land Registry,12/12/2012,FF&F:Maintenance,Durham Office,Carillion Services Ltd,Large,908544,876.14,"Furniture, Fixtures & Fittings:Maintenance",Administration
Land Registry,Land Registry,12/12/2012,FF&F:Maintenance,Fylde Office,Carillion Services Ltd,Large,908544,182.32,"Furniture, Fixtures & Fittings:Maintenance",Administration
Land Registry,Land Registry,12/12/2012,FF&F:Maintenance,Gloucester Computer Centre,Carillion Services Ltd,Large,908544,182.32,"Furniture, Fixtures & Fittings:Maintenance",Administration
Land Registry,Land Registry,12/12/2012,FF&F:Maintenance,Gloucester Office,Carillion Services Ltd,Large,908544,825.82,"Furniture, Fixtures & Fittings:Maintenance",Administration
Land Registry,Land Registry,12/12/2012,FF&F:Maintenance,Governance & Policy,Carillion Services Ltd,Large,908544,1382.72,"Furniture, Fixtures & Fittings:Maintenance",Administration
Land Registry,Land Registry,12/12/2012,FF&F:Maintenance,Hull Office,Carillion Services Ltd,Large,908544,182.32,"Furniture, Fixtures & Fittings:Maintenance",Administration
Land Registry,Land Registry,12/12/2012,FF&F:Maintenance,Leicester Office,Carillion Services Ltd,Large,908544,380.23,"Furniture, Fixtures & Fittings:Maintenance",Administration
Land Registry,Land Registry,12/12/2012,FF&F:Maintenance,Nottingham Office,Carillion Services Ltd,Large,908544,807.49,"Furniture, Fixtures & Fittings:Maintenance",Administration
Land Registry,Land Registry,12/12/2012,FF&F:Maintenance,Peterborough Office,Carillion Services Ltd,Large,908544,1023.77,"Furniture, Fixtures & Fittings:Maintenance",Administration
Land Registry,Land Registry,12/12/2012,FF&F:Maintenance,RFS1 - Telford,Carillion Services Ltd,Large,908544,83.56,"Furniture, Fixtures & Fittings:Maintenance",Administration
Land Registry,Land Registry,12/12/2012,FF&F:Maintenance,RFS15 - Plymouth Drakes Hill Court,Carillion Services Ltd,Large,908544,91.16,"Furniture, Fixtures & Fittings:Maintenance",Administration
Land Registry,Land Registry,12/12/2012,FF&F:Maintenance,RFS5 - Durham Belmont,Carillion Services Ltd,Large,908544,182.32,"Furniture, Fixtures & Fittings:Maintenance",Administration
Land Registry,Land Registry,12/12/2012,FF&F:Maintenance,Telford Office,Carillion Services Ltd,Large,908544,182.32,"Furniture, Fixtures & Fittings:Maintenance",Administration
Land Registry,Land Registry,12/12/2012,FF&F:Maintenance,Wales Office,Carillion Services Ltd,Large,908544,553.53,"Furniture, Fixtures & Fittings:Maintenance",Administration
Land Registry,Land Registry,12/12/2012,FF&F:Maintenance,Weymouth Office,Carillion Services Ltd,Large,908544,273.48,"Furniture, Fixtures & Fittings:Maintenance",Administration
Land Registry,Land Registry,12/12/2012,FM Ext Helpdesk,Birkenhead Office,Carillion Services Ltd,Large,908544,393.15,Facilities External Helpdesk,Administration
Land Registry,Land Registry,12/12/2012,FM Ext Helpdesk,Coventry Office,Carillion Services Ltd,Large,908544,797.74,Facilities External Helpdesk,Administration
Land Registry,Land Registry,12/12/2012,FM Ext Helpdesk,Croydon Office,Carillion Services Ltd,Large,908544,473.24,Facilities External Helpdesk,Administration
Land Registry,Land Registry,12/12/2012,FM Ext Helpdesk,Durham Office,Carillion Services Ltd,Large,908544,493.43,Facilities External Helpdesk,Administration
Land Registry,Land Registry,12/12/2012,FM Ext Helpdesk,Fylde Office,Carillion Services Ltd,Large,908544,343.15,Facilities External Helpdesk,Administration
Land Registry,Land Registry,12/12/2012,FM Ext Helpdesk,Gloucester Computer Centre,Carillion Services Ltd,Large,908544,458.47,Facilities External Helpdesk,Administration
Land Registry,Land Registry,12/12/2012,FM Ext Helpdesk,Gloucester Office,Carillion Services Ltd,Large,908544,494.2,Facilities External Helpdesk,Administration
Land Registry,Land Registry,12/12/2012,FM Ext Helpdesk,Governance & Policy,Carillion Services Ltd,Large,908544,1253.51,Facilities External Helpdesk,Administration
Land Registry,Land Registry,12/12/2012,FM Ext Helpdesk,Hull Office,Carillion Services Ltd,Large,908544,385.63,Facilities External Helpdesk,Administration
Land Registry,Land Registry,12/12/2012,FM Ext Helpdesk,Leicester Office,Carillion Services Ltd,Large,908544,431.64,Facilities External Helpdesk,Administration
Land Registry,Land Registry,12/12/2012,FM Ext Helpdesk,Nottingham Office,Carillion Services Ltd,Large,908544,1409.74,Facilities External Helpdesk,Administration
Land Registry,Land Registry,12/12/2012,FM Ext Helpdesk,Peterborough Office,Carillion Services Ltd,Large,908544,465.62,Facilities External Helpdesk,Administration
Land Registry,Land Registry,12/12/2012,FM Ext Helpdesk,RFS1 - Telford,Carillion Services Ltd,Large,908544,103.92,Facilities External Helpdesk,Administration
Land Registry,Land Registry,12/12/2012,FM Ext Helpdesk,RFS15 - Plymouth Drakes Hill Court,Carillion Services Ltd,Large,908544,117.9,Facilities External Helpdesk,Administration
Land Registry,Land Registry,12/12/2012,FM Ext Helpdesk,RFS4 - Coventry,Carillion Services Ltd,Large,908544,7.09,Facilities External Helpdesk,Administration
Land Registry,Land Registry,12/12/2012,FM Ext Helpdesk,RFS5 - Durham Belmont,Carillion Services Ltd,Large,908544,250.48,Facilities External Helpdesk,Administration
Land Registry,Land Registry,12/12/2012,FM Ext Helpdesk,Telford Office,Carillion Services Ltd,Large,908544,417.21,Facilities External Helpdesk,Administration
Land Registry,Land Registry,12/12/2012,FM Ext Helpdesk,Wales Office,Carillion Services Ltd,Large,908544,373.63,Facilities External Helpdesk,Administration
Land Registry,Land Registry,12/12/2012,FM Ext Helpdesk,Weymouth Office,Carillion Services Ltd,Large,908544,303.73,Facilities External Helpdesk,Administration
Land Registry,Land Registry,12/12/2012,FM Managed Services,Birkenhead Office,Carillion Services Ltd,Large,908544,4556.84,Facilities Managed Services,Administration
Land Registry,Land Registry,12/12/2012,FM Managed Services,Coventry Office,Carillion Services Ltd,Large,908544,7625.53,Facilities Managed Services,Administration
Land Registry,Land Registry,12/12/2012,FM Managed Services,Croydon Office,Carillion Services Ltd,Large,908544,11183.93,Facilities Managed Services,Administration
Land Registry,Land Registry,12/12/2012,FM Managed Services,Durham Office,Carillion Services Ltd,Large,908544,7419.41,Facilities Managed Services,Administration
Land Registry,Land Registry,12/12/2012,FM Managed Services,Fylde Office,Carillion Services Ltd,Large,908544,6669.51,Facilities Managed Services,Administration
Land Registry,Land Registry,12/12/2012,FM Managed Services,Gloucester Computer Centre,Carillion Services Ltd,Large,908544,1859.04,Facilities Managed Services,Administration
Land Registry,Land Registry,12/12/2012,FM Managed Services,Gloucester Office,Carillion Services Ltd,Large,908544,3929.51,Facilities Managed Services,Administration
Land Registry,Land Registry,12/12/2012,FM Managed Services,Governance & Policy,Carillion Services Ltd,Large,908544,8947.38,Facilities Managed Services,Administration
Land Registry,Land Registry,12/12/2012,FM Managed Services,Hull Office,Carillion Services Ltd,Large,908544,3958.83,Facilities Managed Services,Administration
Land Registry,Land Registry,12/12/2012,FM Managed Services,Leicester Office,Carillion Services Ltd,Large,908544,3478.36,Facilities Managed Services,Administration
Land Registry,Land Registry,12/12/2012,FM Managed Services,Nottingham Office,Carillion Services Ltd,Large,908544,10421.54,Facilities Managed Services,Administration
Land Registry,Land Registry,12/12/2012,FM Managed Services,Peterborough Office,Carillion Services Ltd,Large,908544,3592,Facilities Managed Services,Administration
Land Registry,Land Registry,12/12/2012,FM Managed Services,RFS1 - Telford,Carillion Services Ltd,Large,908544,347.6,Facilities Managed Services,Administration
Land Registry,Land Registry,12/12/2012,FM Managed Services,RFS15 - Plymouth Drakes Hill Court,Carillion Services Ltd,Large,908544,668.43,Facilities Managed Services,Administration
Land Registry,Land Registry,12/12/2012,FM Managed Services,RFS4 - Coventry,Carillion Services Ltd,Large,908544,13.61,Facilities Managed Services,Administration
Land Registry,Land Registry,12/12/2012,FM Managed Services,RFS5 - Durham Belmont,Carillion Services Ltd,Large,908544,1249.89,Facilities Managed Services,Administration
Land Registry,Land Registry,12/12/2012,FM Managed Services,Telford Office,Carillion Services Ltd,Large,908544,3430.07,Facilities Managed Services,Administration
Land Registry,Land Registry,12/12/2012,FM Managed Services,Wales Office,Carillion Services Ltd,Large,908544,7316.03,Facilities Managed Services,Administration
Land Registry,Land Registry,12/12/2012,FM Managed Services,Weymouth Office,Carillion Services Ltd,Large,908544,3697.53,Facilities Managed Services,Administration
Land Registry,Land Registry,12/12/2012,Gas,Birkenhead Office,Carillion Services Ltd,Large,908544,1431.96,Gas,Administration
Land Registry,Land Registry,12/12/2012,Gas,Central Facilities Management Team,Carillion Services Ltd,Large,908544,1278.93,Gas,Administration
Land Registry,Land Registry,12/12/2012,Gas,Coventry Office,Carillion Services Ltd,Large,908544,3777.65,Gas,Administration
Land Registry,Land Registry,12/12/2012,Gas,Croydon Office,Carillion Services Ltd,Large,908544,4759.17,Gas,Administration
Land Registry,Land Registry,12/12/2012,Gas,Croydon Sub-Office,Carillion Services Ltd,Large,908544,546.34,Gas,Administration
Land Registry,Land Registry,12/12/2012,Gas,Dir: Finance,Carillion Services Ltd,Large,908544,262.45,Gas,Administration
Land Registry,Land Registry,12/12/2012,Gas,Durham Office,Carillion Services Ltd,Large,908544,1540.74,Gas,Administration
Land Registry,Land Registry,12/12/2012,Gas,Fylde Office,Carillion Services Ltd,Large,908544,1739.43,Gas,Administration
Land Registry,Land Registry,12/12/2012,Gas,Gloucester Computer Centre,Carillion Services Ltd,Large,908544,80.41,Gas,Administration
Land Registry,Land Registry,12/12/2012,Gas,Gloucester Office,Carillion Services Ltd,Large,908544,1387.91,Gas,Administration
Land Registry,Land Registry,12/12/2012,Gas,Governance & Policy,Carillion Services Ltd,Large,908544,1443.45,Gas,Administration
Land Registry,Land Registry,12/12/2012,Gas,Hull Office,Carillion Services Ltd,Large,908544,2529.07,Gas,Administration
Land Registry,Land Registry,12/12/2012,Gas,Leicester Office,Carillion Services Ltd,Large,908544,2539.02,Gas,Administration
Land Registry,Land Registry,12/12/2012,Gas,Nottingham Office,Carillion Services Ltd,Large,908544,7241.98,Gas,Administration
Land Registry,Land Registry,12/12/2012,Gas,Peterborough Office,Carillion Services Ltd,Large,908544,2925.98,Gas,Administration
Land Registry,Land Registry,12/12/2012,Gas,RFS1 - Telford,Carillion Services Ltd,Large,908544,473.11,Gas,Administration
Land Registry,Land Registry,12/12/2012,Gas,RFS15 - Plymouth Drakes Hill Court,Carillion Services Ltd,Large,908544,658.53,Gas,Administration
Land Registry,Land Registry,12/12/2012,Gas,RFS5 - Durham Belmont,Carillion Services Ltd,Large,908544,615.38,Gas,Administration
Land Registry,Land Registry,12/12/2012,Gas,Telford Office,Carillion Services Ltd,Large,908544,2597.29,Gas,Administration
Land Registry,Land Registry,12/12/2012,Gas,Wales Office,Carillion Services Ltd,Large,908544,863.56,Gas,Administration
Land Registry,Land Registry,12/12/2012,Gas,Weymouth Office,Carillion Services Ltd,Large,908544,1591.77,Gas,Administration
Land Registry,Land Registry,12/12/2012,Grounds Maintenance,Birkenhead Office,Carillion Services Ltd,Large,908544,300.46,Grounds Maintenance,Administration
Land Registry,Land Registry,12/12/2012,Grounds Maintenance,Coventry Office,Carillion Services Ltd,Large,908544,787.63,Grounds Maintenance,Administration
Land Registry,Land Registry,12/12/2012,Grounds Maintenance,Croydon Office,Carillion Services Ltd,Large,908544,80.86,Grounds Maintenance,Administration
Land Registry,Land Registry,12/12/2012,Grounds Maintenance,Durham Office,Carillion Services Ltd,Large,908544,867.39,Grounds Maintenance,Administration
Land Registry,Land Registry,12/12/2012,Grounds Maintenance,Fylde Office,Carillion Services Ltd,Large,908544,1257.78,Grounds Maintenance,Administration
Land Registry,Land Registry,12/12/2012,Grounds Maintenance,Gloucester Computer Centre,Carillion Services Ltd,Large,908544,157.07,Grounds Maintenance,Administration
Land Registry,Land Registry,12/12/2012,Grounds Maintenance,Gloucester Office,Carillion Services Ltd,Large,908544,400.65,Grounds Maintenance,Administration
Land Registry,Land Registry,12/12/2012,Grounds Maintenance,Governance & Policy,Carillion Services Ltd,Large,908544,1734.28,Grounds Maintenance,Administration
Land Registry,Land Registry,12/12/2012,Grounds Maintenance,Hull Office,Carillion Services Ltd,Large,908544,827.16,Grounds Maintenance,Administration
Land Registry,Land Registry,12/12/2012,Grounds Maintenance,Leicester Office,Carillion Services Ltd,Large,908544,236.56,Grounds Maintenance,Administration
Land Registry,Land Registry,12/12/2012,Grounds Maintenance,Nottingham Office,Carillion Services Ltd,Large,908544,3786.98,Grounds Maintenance,Administration
Land Registry,Land Registry,12/12/2012,Grounds Maintenance,Peterborough Office,Carillion Services Ltd,Large,908544,157.07,Grounds Maintenance,Administration
Land Registry,Land Registry,12/12/2012,Grounds Maintenance,RFS1 - Telford,Carillion Services Ltd,Large,908544,141.89,Grounds Maintenance,Administration
Land Registry,Land Registry,12/12/2012,Grounds Maintenance,RFS15 - Plymouth Drakes Hill Court,Carillion Services Ltd,Large,908544,295.91,Grounds Maintenance,Administration
Land Registry,Land Registry,12/12/2012,Grounds Maintenance,RFS5 - Durham Belmont,Carillion Services Ltd,Large,908544,152.6,Grounds Maintenance,Administration
Land Registry,Land Registry,12/12/2012,Grounds Maintenance,Telford Office,Carillion Services Ltd,Large,908544,9229.16,Grounds Maintenance,Administration
Land Registry,Land Registry,12/12/2012,Grounds Maintenance,Wales Office,Carillion Services Ltd,Large,908544,530.47,Grounds Maintenance,Administration
Land Registry,Land Registry,12/12/2012,Grounds Maintenance,Weymouth Office,Carillion Services Ltd,Large,908544,720.17,Grounds Maintenance,Administration
Land Registry,Land Registry,12/12/2012,Office Cleaning Expenses,Birkenhead Office,Carillion Services Ltd,Large,908544,5887.16,Office Cleaning Expenses,Administration
Land Registry,Land Registry,12/12/2012,Office Cleaning Expenses,Central Facilities Management Team,Carillion Services Ltd,Large,908544,752.09,Office Cleaning Expenses,Administration
Land Registry,Land Registry,12/12/2012,Office Cleaning Expenses,Coventry Office,Carillion Services Ltd,Large,908544,7668.88,Office Cleaning Expenses,Administration
Land Registry,Land Registry,12/12/2012,Office Cleaning Expenses,Croydon Office,Carillion Services Ltd,Large,908544,5876.73,Office Cleaning Expenses,Administration
Land Registry,Land Registry,12/12/2012,Office Cleaning Expenses,Durham Office,Carillion Services Ltd,Large,908544,8688.84,Office Cleaning Expenses,Administration
Land Registry,Land Registry,12/12/2012,Office Cleaning Expenses,Fylde Office,Carillion Services Ltd,Large,908544,5363.75,Office Cleaning Expenses,Administration
Land Registry,Land Registry,12/12/2012,Office Cleaning Expenses,Gloucester Office,Carillion Services Ltd,Large,908544,5628.05,Office Cleaning Expenses,Administration
Land Registry,Land Registry,12/12/2012,Office Cleaning Expenses,Governance & Policy,Carillion Services Ltd,Large,908544,8502.3,Office Cleaning Expenses,Administration
Land Registry,Land Registry,12/12/2012,Office Cleaning Expenses,Hull Office,Carillion Services Ltd,Large,908544,5191.03,Office Cleaning Expenses,Administration
Land Registry,Land Registry,12/12/2012,Office Cleaning Expenses,Leicester Office,Carillion Services Ltd,Large,908544,3768.01,Office Cleaning Expenses,Administration
Land Registry,Land Registry,12/12/2012,Office Cleaning Expenses,Nottingham Office,Carillion Services Ltd,Large,908544,11577.22,Office Cleaning Expenses,Administration
Land Registry,Land Registry,12/12/2012,Office Cleaning Expenses,Peterborough Office,Carillion Services Ltd,Large,908544,9738.95,Office Cleaning Expenses,Administration
Land Registry,Land Registry,12/12/2012,Office Cleaning Expenses,RFS1 - Telford,Carillion Services Ltd,Large,908544,223.14,Office Cleaning Expenses,Administration
Land Registry,Land Registry,12/12/2012,Office Cleaning Expenses,RFS15 - Plymouth Drakes Hill Court,Carillion Services Ltd,Large,908544,451.77,Office Cleaning Expenses,Administration
Land Registry,Land Registry,12/12/2012,Office Cleaning Expenses,RFS4 - Coventry,Carillion Services Ltd,Large,908544,234.75,Office Cleaning Expenses,Administration
Land Registry,Land Registry,12/12/2012,Office Cleaning Expenses,RFS5 - Durham Belmont,Carillion Services Ltd,Large,908544,926.88,Office Cleaning Expenses,Administration
Land Registry,Land Registry,12/12/2012,Office Cleaning Expenses,Telford Office,Carillion Services Ltd,Large,908544,5277.53,Office Cleaning Expenses,Administration
Land Registry,Land Registry,12/12/2012,Office Cleaning Expenses,Wales Office,Carillion Services Ltd,Large,908544,4889.43,Office Cleaning Expenses,Administration
Land Registry,Land Registry,12/12/2012,Office Cleaning Expenses,Weymouth Office,Carillion Services Ltd,Large,908544,4044.96,Office Cleaning Expenses,Administration
Land Registry,Land Registry,12/12/2012,Pest Control,Birkenhead Office,Carillion Services Ltd,Large,908544,237.8,Pest Control,Administration
Land Registry,Land Registry,12/12/2012,Pest Control,Coventry Office,Carillion Services Ltd,Large,908544,963.25,Pest Control,Administration
Land Registry,Land Registry,12/12/2012,Pest Control,Croydon Office,Carillion Services Ltd,Large,908544,40.05,Pest Control,Administration
Land Registry,Land Registry,12/12/2012,Pest Control,Durham Office,Carillion Services Ltd,Large,908544,102.29,Pest Control,Administration
Land Registry,Land Registry,12/12/2012,Pest Control,Fylde Office,Carillion Services Ltd,Large,908544,39.44,Pest Control,Administration
Land Registry,Land Registry,12/12/2012,Pest Control,Gloucester Computer Centre,Carillion Services Ltd,Large,908544,510.01,Pest Control,Administration
Land Registry,Land Registry,12/12/2012,Pest Control,Gloucester Office,Carillion Services Ltd,Large,908544,46.52,Pest Control,Administration
Land Registry,Land Registry,12/12/2012,Pest Control,Governance & Policy,Carillion Services Ltd,Large,908544,522.57,Pest Control,Administration
Land Registry,Land Registry,12/12/2012,Pest Control,Hull Office,Carillion Services Ltd,Large,908544,49.84,Pest Control,Administration
Land Registry,Land Registry,12/12/2012,Pest Control,Leicester Office,Carillion Services Ltd,Large,908544,187.75,Pest Control,Administration
Land Registry,Land Registry,12/12/2012,Pest Control,Nottingham Office,Carillion Services Ltd,Large,908544,61.39,Pest Control,Administration
Land Registry,Land Registry,12/12/2012,Pest Control,Peterborough Office,Carillion Services Ltd,Large,908544,57.54,Pest Control,Administration
Land Registry,Land Registry,12/12/2012,Pest Control,RFS1 - Telford,Carillion Services Ltd,Large,908544,32.62,Pest Control,Administration
Land Registry,Land Registry,12/12/2012,Pest Control,RFS15 - Plymouth Drakes Hill Court,Carillion Services Ltd,Large,908544,540.84,Pest Control,Administration
Land Registry,Land Registry,12/12/2012,Pest Control,RFS5 - Durham Belmont,Carillion Services Ltd,Large,908544,53.69,Pest Control,Administration
Land Registry,Land Registry,12/12/2012,Pest Control,RFS9 - Leicester,Carillion Services Ltd,Large,908544,96.3,Pest Control,Administration
Land Registry,Land Registry,12/12/2012,Pest Control,Telford Office,Carillion Services Ltd,Large,908544,44.77,Pest Control,Administration
Land Registry,Land Registry,12/12/2012,Pest Control,Wales Office,Carillion Services Ltd,Large,908544,59.11,Pest Control,Administration
Land Registry,Land Registry,12/12/2012,Pest Control,Weymouth Office,Carillion Services Ltd,Large,908544,548.39,Pest Control,Administration
Land Registry,Land Registry,12/12/2012,Property Maintenance,Birkenhead Office,Carillion Services Ltd,Large,908544,8519.56,Property Maintenance,Administration
Land Registry,Land Registry,12/12/2012,Property Maintenance,Central Facilities Management Team,Carillion Services Ltd,Large,908544,1277.96,Property Maintenance,Administration
Land Registry,Land Registry,12/12/2012,Property Maintenance,Coventry Office,Carillion Services Ltd,Large,908544,14227.61,Property Maintenance,Administration
Land Registry,Land Registry,12/12/2012,Property Maintenance,Croydon Office,Carillion Services Ltd,Large,908544,15100.04,Property Maintenance,Administration
Land Registry,Land Registry,12/12/2012,Property Maintenance,Durham Office,Carillion Services Ltd,Large,908544,6828.4,Property Maintenance,Administration
Land Registry,Land Registry,12/12/2012,Property Maintenance,Fylde Office,Carillion Services Ltd,Large,908544,13425.89,Property Maintenance,Administration
Land Registry,Land Registry,12/12/2012,Property Maintenance,Gloucester Computer Centre,Carillion Services Ltd,Large,908544,9806.03,Property Maintenance,Administration
Land Registry,Land Registry,12/12/2012,Property Maintenance,Gloucester Office,Carillion Services Ltd,Large,908544,13620.41,Property Maintenance,Administration
Land Registry,Land Registry,12/12/2012,Property Maintenance,Governance & Policy,Carillion Services Ltd,Large,908544,27996.42,Property Maintenance,Administration
Land Registry,Land Registry,12/12/2012,Property Maintenance,Hull Office,Carillion Services Ltd,Large,908544,6877.2,Property Maintenance,Administration
Land Registry,Land Registry,12/12/2012,Property Maintenance,Leicester Office,Carillion Services Ltd,Large,908544,41018.3,Property Maintenance,Administration
Land Registry,Land Registry,12/12/2012,Property Maintenance,Nottingham Office,Carillion Services Ltd,Large,908544,15740.54,Property Maintenance,Administration
Land Registry,Land Registry,12/12/2012,Property Maintenance,Peterborough Office,Carillion Services Ltd,Large,908544,2225.31,Property Maintenance,Administration
Land Registry,Land Registry,12/12/2012,Property Maintenance,RFS1 - Telford,Carillion Services Ltd,Large,908544,3120.47,Property Maintenance,Administration
Land Registry,Land Registry,12/12/2012,Property Maintenance,RFS15 - Plymouth Drakes Hill Court,Carillion Services Ltd,Large,908544,5246.07,Property Maintenance,Administration
Land Registry,Land Registry,12/12/2012,Property Maintenance,RFS2 - Telford,Carillion Services Ltd,Large,908544,76.62,Property Maintenance,Administration
Land Registry,Land Registry,12/12/2012,Property Maintenance,RFS4 - Coventry,Carillion Services Ltd,Large,908544,55.24,Property Maintenance,Administration
Land Registry,Land Registry,12/12/2012,Property Maintenance,RFS5 - Durham Belmont,Carillion Services Ltd,Large,908544,4400.46,Property Maintenance,Administration
Land Registry,Land Registry,12/12/2012,Property Maintenance,Telford Office,Carillion Services Ltd,Large,908544,7786.35,Property Maintenance,Administration
Land Registry,Land Registry,12/12/2012,Property Maintenance,Wales Office,Carillion Services Ltd,Large,908544,13699.66,Property Maintenance,Administration
Land Registry,Land Registry,12/12/2012,Property Maintenance,Weymouth Office,Carillion Services Ltd,Large,908544,47481.79,Property Maintenance,Administration
Land Registry,Land Registry,12/12/2012,Property Management; Advice,Dir: Finance,Carillion Services Ltd,Large,908544,760,Property Management; Advice,Administration
Land Registry,Land Registry,12/12/2012,Property Management; Other Fees,Dir: Finance,Carillion Services Ltd,Large,908544,183.68,Property Management; Other Fees,Administration
Land Registry,Land Registry,12/12/2012,Security Expenses,Birkenhead Office,Carillion Services Ltd,Large,908544,3339.45,Security Expenses,Administration
Land Registry,Land Registry,12/12/2012,Security Expenses,Central Facilities Management Team,Carillion Services Ltd,Large,908544,6032.28,Security Expenses,Administration
Land Registry,Land Registry,12/12/2012,Security Expenses,Coventry Office,Carillion Services Ltd,Large,908544,7931.49,Security Expenses,Administration
Land Registry,Land Registry,12/12/2012,Security Expenses,Croydon Office,Carillion Services Ltd,Large,908544,10734.96,Security Expenses,Administration
Land Registry,Land Registry,12/12/2012,Security Expenses,Durham Office,Carillion Services Ltd,Large,908544,4098.91,Security Expenses,Administration
Land Registry,Land Registry,12/12/2012,Security Expenses,Fylde Office,Carillion Services Ltd,Large,908544,3889.81,Security Expenses,Administration
Land Registry,Land Registry,12/12/2012,Security Expenses,Gloucester Computer Centre,Carillion Services Ltd,Large,908544,8269.97,Security Expenses,Administration
Land Registry,Land Registry,12/12/2012,Security Expenses,Gloucester Office,Carillion Services Ltd,Large,908544,10518.32,Security Expenses,Administration
Land Registry,Land Registry,12/12/2012,Security Expenses,Governance & Policy,Carillion Services Ltd,Large,908544,20633.5,Security Expenses,Administration
Land Registry,Land Registry,12/12/2012,Security Expenses,Hull Office,Carillion Services Ltd,Large,908544,3234.31,Security Expenses,Administration
Land Registry,Land Registry,12/12/2012,Security Expenses,Leicester Office,Carillion Services Ltd,Large,908544,2818.41,Security Expenses,Administration
Land Registry,Land Registry,12/12/2012,Security Expenses,Nottingham Office,Carillion Services Ltd,Large,908544,41983.76,Security Expenses,Administration
Land Registry,Land Registry,12/12/2012,Security Expenses,Peterborough Office,Carillion Services Ltd,Large,908544,5088.74,Security Expenses,Administration
Land Registry,Land Registry,12/12/2012,Security Expenses,Telford Office,Carillion Services Ltd,Large,908544,2928.33,Security Expenses,Administration
Land Registry,Land Registry,12/12/2012,Security Expenses,Wales Office,Carillion Services Ltd,Large,908544,2906.31,Security Expenses,Administration
Land Registry,Land Registry,12/12/2012,Security Expenses,Weymouth Office,Carillion Services Ltd,Large,908544,3129.65,Security Expenses,Administration
Land Registry,Land Registry,12/12/2012,Vending Machine Consumables & Repairs,Birkenhead Office,Carillion Services Ltd,Large,908544,737.23,Vending Machine Consumables & Repairs,Administration
Land Registry,Land Registry,12/12/2012,Vending Machine Consumables & Repairs,Coventry Office,Carillion Services Ltd,Large,908544,222.09,Vending Machine Consumables & Repairs,Administration
Land Registry,Land Registry,12/12/2012,Vending Machine Consumables & Repairs,Croydon Office,Carillion Services Ltd,Large,908544,189.13,Vending Machine Consumables & Repairs,Administration
Land Registry,Land Registry,12/12/2012,Vending Machine Consumables & Repairs,Fylde Office,Carillion Services Ltd,Large,908544,218.76,Vending Machine Consumables & Repairs,Administration
Land Registry,Land Registry,12/12/2012,Vending Machine Consumables & Repairs,Gloucester Office,Carillion Services Ltd,Large,908544,729.73,Vending Machine Consumables & Repairs,Administration
Land Registry,Land Registry,12/12/2012,Vending Machine Consumables & Repairs,Hull Office,Carillion Services Ltd,Large,908544,215.2,Vending Machine Consumables & Repairs,Administration
Land Registry,Land Registry,12/12/2012,Vending Machine Consumables & Repairs,Leicester Office,Carillion Services Ltd,Large,908544,157.74,Vending Machine Consumables & Repairs,Administration
Land Registry,Land Registry,12/12/2012,Vending Machine Consumables & Repairs,Nottingham Office,Carillion Services Ltd,Large,908544,176.93,Vending Machine Consumables & Repairs,Administration
Land Registry,Land Registry,12/12/2012,Vending Machine Consumables & Repairs,Peterborough Office,Carillion Services Ltd,Large,908544,161.35,Vending Machine Consumables & Repairs,Administration
Land Registry,Land Registry,12/12/2012,Vending Machine Consumables & Repairs,RFS1 - Telford,Carillion Services Ltd,Large,908544,4.46,Vending Machine Consumables & Repairs,Administration
Land Registry,Land Registry,12/12/2012,Vending Machine Consumables & Repairs,RFS15 - Plymouth Drakes Hill Court,Carillion Services Ltd,Large,908544,-8888.27,Vending Machine Consumables & Repairs,Administration
Land Registry,Land Registry,12/12/2012,Vending Machine Consumables & Repairs,RFS5 - Durham Belmont,Carillion Services Ltd,Large,908544,46.1,Vending Machine Consumables & Repairs,Administration
Land Registry,Land Registry,12/12/2012,Vending Machine Consumables & Repairs,RFS8 - Birkenhead,Carillion Services Ltd,Large,908544,54.62,Vending Machine Consumables & Repairs,Administration
Land Registry,Land Registry,12/12/2012,Vending Machine Consumables & Repairs,Telford Office,Carillion Services Ltd,Large,908544,226.96,Vending Machine Consumables & Repairs,Administration
Land Registry,Land Registry,12/12/2012,Vending Machine Consumables & Repairs,Wales Office,Carillion Services Ltd,Large,908544,182.05,Vending Machine Consumables & Repairs,Administration
Land Registry,Land Registry,12/12/2012,Vending Machine Consumables & Repairs,Weymouth Office,Carillion Services Ltd,Large,908544,120.1,Vending Machine Consumables & Repairs,Administration
Land Registry,Land Registry,12/12/2012,Waste Disposal,Birkenhead Office,Carillion Services Ltd,Large,908544,629.75,Waste Disposal,Administration
Land Registry,Land Registry,12/12/2012,Waste Disposal,Central Facilities Management Team,Carillion Services Ltd,Large,908544,97.77,Waste Disposal,Administration
Land Registry,Land Registry,12/12/2012,Waste Disposal,Coventry Office,Carillion Services Ltd,Large,908544,348.33,Waste Disposal,Administration
Land Registry,Land Registry,12/12/2012,Waste Disposal,Croydon Office,Carillion Services Ltd,Large,908544,252.08,Waste Disposal,Administration
Land Registry,Land Registry,12/12/2012,Waste Disposal,Durham Office,Carillion Services Ltd,Large,908544,593.13,Waste Disposal,Administration
Land Registry,Land Registry,12/12/2012,Waste Disposal,Fylde Office,Carillion Services Ltd,Large,908544,872.95,Waste Disposal,Administration
Land Registry,Land Registry,12/12/2012,Waste Disposal,Gloucester Computer Centre,Carillion Services Ltd,Large,908544,92.67,Waste Disposal,Administration
Land Registry,Land Registry,12/12/2012,Waste Disposal,Gloucester Office,Carillion Services Ltd,Large,908544,502.86,Waste Disposal,Administration
Land Registry,Land Registry,12/12/2012,Waste Disposal,Governance & Policy,Carillion Services Ltd,Large,908544,2246.3,Waste Disposal,Administration
Land Registry,Land Registry,12/12/2012,Waste Disposal,Hull Office,Carillion Services Ltd,Large,908544,540.94,Waste Disposal,Administration
Land Registry,Land Registry,12/12/2012,Waste Disposal,Leicester Office,Carillion Services Ltd,Large,908544,331.58,Waste Disposal,Administration
Land Registry,Land Registry,12/12/2012,Waste Disposal,Nottingham Office,Carillion Services Ltd,Large,908544,904.83,Waste Disposal,Administration
Land Registry,Land Registry,12/12/2012,Waste Disposal,Peterborough Office,Carillion Services Ltd,Large,908544,242.92,Waste Disposal,Administration
Land Registry,Land Registry,12/12/2012,Waste Disposal,RFS15 - Plymouth Drakes Hill Court,Carillion Services Ltd,Large,908544,19.92,Waste Disposal,Administration
Land Registry,Land Registry,12/12/2012,Waste Disposal,Telford Office,Carillion Services Ltd,Large,908544,404.12,Waste Disposal,Administration
Land Registry,Land Registry,12/12/2012,Waste Disposal,Wales Office,Carillion Services Ltd,Large,908544,1697.33,Waste Disposal,Administration
Land Registry,Land Registry,12/12/2012,Waste Disposal,Weymouth Office,Carillion Services Ltd,Large,908544,221.17,Waste Disposal,Administration
Land Registry,Land Registry,12/12/2012,Water,Birkenhead Office,Carillion Services Ltd,Large,908544,4997.32,Water,Administration
Land Registry,Land Registry,12/12/2012,Water,Central Facilities Management Team,Carillion Services Ltd,Large,908544,176.34,Water,Administration
Land Registry,Land Registry,12/12/2012,Water,Coventry Office,Carillion Services Ltd,Large,908544,1954,Water,Administration
Land Registry,Land Registry,12/12/2012,Water,Dir: Finance,Carillion Services Ltd,Large,908544,165.74,Water,Administration
Land Registry,Land Registry,12/12/2012,Water,Durham Office,Carillion Services Ltd,Large,908544,188.15,Water,Administration
Land Registry,Land Registry,12/12/2012,Water,Gloucester Office,Carillion Services Ltd,Large,908544,825.04,Water,Administration
Land Registry,Land Registry,12/12/2012,Water,Governance & Policy,Carillion Services Ltd,Large,908544,4548.79,Water,Administration
Land Registry,Land Registry,12/12/2012,Water,Hull Office,Carillion Services Ltd,Large,908544,712.11,Water,Administration
Land Registry,Land Registry,12/12/2012,Water,Nottingham Office,Carillion Services Ltd,Large,908544,2057.24,Water,Administration
Land Registry,Land Registry,12/12/2012,Water,RFS1 - Telford,Carillion Services Ltd,Large,908544,36.03,Water,Administration
Land Registry,Land Registry,12/12/2012,Water,RFS15 - Plymouth Drakes Hill Court,Carillion Services Ltd,Large,908544,37.31,Water,Administration
Land Registry,Land Registry,12/12/2012,Water,RFS5 - Durham Belmont,Carillion Services Ltd,Large,908544,170.06,Water,Administration
Land Registry,Land Registry,12/12/2012,Water,RFS9 - Leicester,Carillion Services Ltd,Large,908544,340.97,Water,Administration
Land Registry,Land Registry,12/12/2012,Water,Telford Office,Carillion Services Ltd,Large,908544,1044.77,Water,Administration
Land Registry,Land Registry,12/06/2012,Childcare Services,HR,Childcare Enterprise Ltd,SME,904594,14542,Childcare Services,Administration
Land Registry,Land Registry,12/06/2012,Childcare Services,Nottingham Office,Childcare Enterprise Ltd,SME,904594,16131,Childcare Services,Administration
Land Registry,Land Registry,21/12/2012,Rates Payable,Wales Office,City & County of Swansea,Large,912598,16498,Rates Payable,Administration
Land Registry,Land Registry,21/12/2012,Rates Payable,Governance & Policy,City of Plymouth,Large,912599,37556,Rates Payable,Administration
Land Registry,Land Registry,21/12/2012,Rates Payable,Land Charges,City of Plymouth,Large,912599,12939,Rates Payable,Administration
Land Registry,Land Registry,21/12/2012,Rates Payable,Property Asset Management Group,City of York Council,Large,912600,20152,Rates Payable,Administration
Land Registry,Land Registry,20/12/2012,Rent Payable,Property Asset Management Group,Collier & Madge Plc,Large,911934,135000,Rent Payable,Administration
Land Registry,Land Registry,12/11/2012,Rates Payable,Coventry Office,Coventry City Council,Large,907784,81066,Rates Payable,Administration
Land Registry,Land Registry,21/12/2012,Rates Payable,Durham Office,Durham County Council,Large,912603,4776,Rates Payable,Administration
Land Registry,Land Registry,12/04/2012,Transport Hire of Cars and Vans,Central Facilities Management Team,Enterprise Rent-A-Car (UK) Ltd,Large,903771,21317.56,Transport Hire of Cars and Vans,Administration
Land Registry,Land Registry,21/12/2012,Rates Payable,Fylde Office,Fylde Borough Council,Large,912605,573,Rates Payable,Administration
Land Registry,Land Registry,21/12/2012,Rates Payable,Gloucester Office,Gloucester City Council,Large,912606,22786,Rates Payable,Administration
Land Registry,Land Registry,12/06/2012,Computer Equipment Maintenance,IS Service Delivery,IBM United Kingdom Ltd,Large,904598,62250,Computer Equipment Maintenance,Administration
Land Registry,Land Registry,18/12/2012,Legal  Expenses,Dir: Operations,Jones Lang LaSalle Ltd,Large,910781,33710.69,Legal  Expenses,Administration
Land Registry,Land Registry,12/10/2012,Legal  Expenses,Dir: Operations,Jones Lang LaSalle Ltd,Large,907096,21688.75,Legal  Expenses,Administration
Land Registry,Land Registry,12/10/2012,Rates Payable,Hull Office,Kingston Upon Hull City Council,Large,907097,13053,Rates Payable,Administration
Land Registry,Land Registry,21/12/2012,Rent Payable,Hull Office,Kingston Upon Hull City Council,Large,912609,11850,Rent Payable,Administration
Land Registry,Land Registry,20/12/2012,Rent Payable,Peterborough Office,Lambert Smith Hampton,Large,911936,245160,Rent Payable,Administration
Land Registry,Land Registry,21/12/2012,Rent Payable,Peterborough Office,Lambert Smith Hampton,Large,912612,63000,Rent Payable,Administration
Land Registry,Land Registry,21/12/2012,Service Charges,Peterborough Office,Lambert Smith Hampton,Large,912612,56440.25,Service Charges,Administration
Land Registry,Land Registry,21/12/2012,Rates Payable,Leicester Office,Leicester City Council,Large,912614,18747,Rates Payable,Administration
Land Registry,Land Registry,12/12/2012,Computer Equipment Maintenance,IS Service Delivery,Logica CMG UK Ltd,Large,908546,86872,Computer Equipment Maintenance,Administration
Land Registry,Land Registry,21/12/2012,Rates Payable,Nottingham Office,Nottingham City Council,Large,912617,51571,Rates Payable,Administration
Land Registry,Land Registry,17/12/2012,Service Charges,Property Asset Management Group,Nottingham City Council,Large,910735,10496,Service Charges,Administration
Land Registry,Land Registry,12/06/2012,Major Property Improvement Projects,Dir: HR,Overbury Plc,Large,904609,424626.36,Major Property Improvement Projects,Administration
Land Registry,Land Registry,21/12/2012,Rates Payable,Peterborough Office,Peterborough City Council,Large,912619,46258,Rates Payable,Administration
Land Registry,Land Registry,21/12/2012,Rent Payable,Croydon Sub-Office,Portsmouth City Council,Large,912620,10733.75,Rent Payable,Administration
Land Registry,Land Registry,12/11/2012,Assets in the Course of Construction,Balance Sheet,Redfern Travel Ltd,Large,907792,284.82,Assets in the Course of Construction,Administration
Land Registry,Land Registry,12/11/2012,Travel & Subsistence General Duty,Birkenhead Office,Redfern Travel Ltd,Large,907792,748.49,Travel & Subsistence General Duty,Administration
Land Registry,Land Registry,12/11/2012,Travel & Subsistence General Duty,Business Continuity,Redfern Travel Ltd,Large,907792,360.17,Travel & Subsistence General Duty,Administration
Land Registry,Land Registry,12/11/2012,Travel & Subsistence General Duty,Business Development,Redfern Travel Ltd,Large,907792,5523.69,Travel & Subsistence General Duty,Administration
Land Registry,Land Registry,12/11/2012,Travel & Subsistence General Duty,Business Planning Assurance and Risk Management,Redfern Travel Ltd,Large,907792,85.17,Travel & Subsistence General Duty,Administration
Land Registry,Land Registry,12/11/2012,Travel & Subsistence General Duty,Capability,Redfern Travel Ltd,Large,907792,2567.31,Travel & Subsistence General Duty,Administration
Land Registry,Land Registry,12/11/2012,Travel & Subsistence General Duty,Central Facilities Management Team,Redfern Travel Ltd,Large,907792,4012.51,Travel & Subsistence General Duty,Administration
Land Registry,Land Registry,12/11/2012,Travel & Subsistence General Duty,Central Operations Group,Redfern Travel Ltd,Large,907792,6053.22,Travel & Subsistence General Duty,Administration
Land Registry,Land Registry,12/11/2012,Travel & Subsistence General Duty,Chief Land Registrars Office,Redfern Travel Ltd,Large,907792,3227.83,Travel & Subsistence General Duty,Administration
Land Registry,Land Registry,12/11/2012,Travel & Subsistence General Duty,Commercial & Customer Strategy & Performance,Redfern Travel Ltd,Large,907792,2040.36,Travel & Subsistence General Duty,Administration
Land Registry,Land Registry,12/11/2012,Travel & Subsistence General Duty,Commercial Director,Redfern Travel Ltd,Large,907792,85.8,Travel & Subsistence General Duty,Administration
Land Registry,Land Registry,12/11/2012,Travel & Subsistence General Duty,Corp Procurement,Redfern Travel Ltd,Large,907792,1168.21,Travel & Subsistence General Duty,Administration
Land Registry,Land Registry,12/11/2012,Travel & Subsistence General Duty,Corporate Legal Services,Redfern Travel Ltd,Large,907792,2244.9,Travel & Subsistence General Duty,Administration
Land Registry,Land Registry,12/11/2012,Travel & Subsistence General Duty,Coventry Office,Redfern Travel Ltd,Large,907792,98.24,Travel & Subsistence General Duty,Administration
Land Registry,Land Registry,12/11/2012,Travel & Subsistence General Duty,Croydon Office,Redfern Travel Ltd,Large,907792,358.57,Travel & Subsistence General Duty,Administration
Land Registry,Land Registry,12/11/2012,Travel & Subsistence General Duty,Croydon Sub-Office,Redfern Travel Ltd,Large,907792,86.16,Travel & Subsistence General Duty,Administration
Land Registry,Land Registry,12/11/2012,Travel & Subsistence General Duty,Customer Services,Redfern Travel Ltd,Large,907792,1090.1,Travel & Subsistence General Duty,Administration
Land Registry,Land Registry,12/11/2012,Travel & Subsistence General Duty,Dir: (Add Value) Commercial & Customer,Redfern Travel Ltd,Large,907792,2100.67,Travel & Subsistence General Duty,Administration
Land Registry,Land Registry,12/11/2012,Travel & Subsistence General Duty,Dir: (Statutory) Commercial & Customer,Redfern Travel Ltd,Large,907792,9045.66,Travel & Subsistence General Duty,Administration
Land Registry,Land Registry,12/11/2012,Travel & Subsistence General Duty,Dir: Finance,Redfern Travel Ltd,Large,907792,294.12,Travel & Subsistence General Duty,Administration
Land Registry,Land Registry,12/11/2012,Travel & Subsistence General Duty,Dir: HR,Redfern Travel Ltd,Large,907792,7323.17,Travel & Subsistence General Duty,Administration
Land Registry,Land Registry,12/11/2012,Travel & Subsistence General Duty,Dir: Information Systems,Redfern Travel Ltd,Large,907792,0,Travel & Subsistence General Duty,Administration
Land Registry,Land Registry,12/11/2012,Travel & Subsistence General Duty,Dir: Legal Services,Redfern Travel Ltd,Large,907792,547.1,Travel & Subsistence General Duty,Administration
Land Registry,Land Registry,12/11/2012,Travel & Subsistence General Duty,Dir: Operations,Redfern Travel Ltd,Large,907792,3133.08,Travel & Subsistence General Duty,Administration
Land Registry,Land Registry,12/11/2012,Travel & Subsistence General Duty,Director of Information Systems,Redfern Travel Ltd,Large,907792,1331.67,Travel & Subsistence General Duty,Administration
Land Registry,Land Registry,12/11/2012,Travel & Subsistence General Duty,Director of Legal Services,Redfern Travel Ltd,Large,907792,1756.4,Travel & Subsistence General Duty,Administration
Land Registry,Land Registry,12/11/2012,Travel & Subsistence General Duty,Director of Operations,Redfern Travel Ltd,Large,907792,195.61,Travel & Subsistence General Duty,Administration
Land Registry,Land Registry,12/11/2012,Travel & Subsistence General Duty,Durham Office,Redfern Travel Ltd,Large,907792,2926.07,Travel & Subsistence General Duty,Administration
Land Registry,Land Registry,12/11/2012,Travel & Subsistence General Duty,Employee & Management Support Manager,Redfern Travel Ltd,Large,907792,1242.4,Travel & Subsistence General Duty,Administration
Land Registry,Land Registry,12/11/2012,Travel & Subsistence General Duty,External Solutions Group,Redfern Travel Ltd,Large,907792,4301.92,Travel & Subsistence General Duty,Administration
Land Registry,Land Registry,12/11/2012,Travel & Subsistence General Duty,Finance Director,Redfern Travel Ltd,Large,907792,64.13,Travel & Subsistence General Duty,Administration
Land Registry,Land Registry,12/11/2012,Travel & Subsistence General Duty,Finance Group,Redfern Travel Ltd,Large,907792,460.07,Travel & Subsistence General Duty,Administration
Land Registry,Land Registry,12/11/2012,Travel & Subsistence General Duty,Fylde Office,Redfern Travel Ltd,Large,907792,566.66,Travel & Subsistence General Duty,Administration
Land Registry,Land Registry,12/11/2012,Travel & Subsistence General Duty,Gloucester Office,Redfern Travel Ltd,Large,907792,448.92,Travel & Subsistence General Duty,Administration
Land Registry,Land Registry,12/11/2012,Travel & Subsistence General Duty,Governance & Policy,Redfern Travel Ltd,Large,907792,2631.51,Travel & Subsistence General Duty,Administration
Land Registry,Land Registry,12/11/2012,Travel & Subsistence General Duty,Guarantee & Litigation,Redfern Travel Ltd,Large,907792,886.38,Travel & Subsistence General Duty,Administration
Land Registry,Land Registry,12/11/2012,Travel & Subsistence General Duty,Head Office LRIS,Redfern Travel Ltd,Large,907792,113.02,Travel & Subsistence General Duty,Administration
Land Registry,Land Registry,12/11/2012,Travel & Subsistence General Duty,HR,Redfern Travel Ltd,Large,907792,11197.62,Travel & Subsistence General Duty,Administration
Land Registry,Land Registry,12/11/2012,Travel & Subsistence General Duty,Hull Office,Redfern Travel Ltd,Large,907792,1326.37,Travel & Subsistence General Duty,Administration
Land Registry,Land Registry,12/11/2012,Travel & Subsistence General Duty,Independent Complaints Reviewer,Redfern Travel Ltd,Large,907792,131.74,Travel & Subsistence General Duty,Administration
Land Registry,Land Registry,12/11/2012,Travel & Subsistence General Duty,Internal Audit,Redfern Travel Ltd,Large,907792,2744.76,Travel & Subsistence General Duty,Administration
Land Registry,Land Registry,12/11/2012,Travel & Subsistence General Duty,Internal Solutions Group,Redfern Travel Ltd,Large,907792,5311.48,Travel & Subsistence General Duty,Administration
Land Registry,Land Registry,12/11/2012,Travel & Subsistence General Duty,International Unit,Redfern Travel Ltd,Large,907792,1795.27,Travel & Subsistence General Duty,Administration
Land Registry,Land Registry,12/11/2012,Travel & Subsistence General Duty,IS Service Delivery,Redfern Travel Ltd,Large,907792,5256.12,Travel & Subsistence General Duty,Administration
Land Registry,Land Registry,12/11/2012,Travel & Subsistence General Duty,Learning and Development,Redfern Travel Ltd,Large,907792,1675.21,Travel & Subsistence General Duty,Administration
Land Registry,Land Registry,12/11/2012,Travel & Subsistence General Duty,Leicester Office,Redfern Travel Ltd,Large,907792,220.89,Travel & Subsistence General Duty,Administration
Land Registry,Land Registry,12/11/2012,Travel & Subsistence General Duty,LR Board & Board Chair,Redfern Travel Ltd,Large,907792,94.61,Travel & Subsistence General Duty,Administration
Land Registry,Land Registry,12/11/2012,Travel & Subsistence General Duty,LR Qualification,Redfern Travel Ltd,Large,907792,144.57,Travel & Subsistence General Duty,Administration
Land Registry,Land Registry,12/11/2012,Travel & Subsistence General Duty,Marketing Services Team,Redfern Travel Ltd,Large,907792,668.92,Travel & Subsistence General Duty,Administration
Land Registry,Land Registry,12/11/2012,Travel & Subsistence General Duty,Nottingham Office,Redfern Travel Ltd,Large,907792,764.45,Travel & Subsistence General Duty,Administration
Land Registry,Land Registry,12/11/2012,Travel & Subsistence General Duty,Peterborough LRIS,Redfern Travel Ltd,Large,907792,61.65,Travel & Subsistence General Duty,Administration
Land Registry,Land Registry,12/11/2012,Travel & Subsistence General Duty,Peterborough Office,Redfern Travel Ltd,Large,907792,175.85,Travel & Subsistence General Duty,Administration
Land Registry,Land Registry,12/11/2012,Travel & Subsistence General Duty,Plymouth Office,Redfern Travel Ltd,Large,907792,294.45,Travel & Subsistence General Duty,Administration
Land Registry,Land Registry,12/11/2012,Travel & Subsistence General Duty,Product Development & Management,Redfern Travel Ltd,Large,907792,3926.31,Travel & Subsistence General Duty,Administration
Land Registry,Land Registry,12/11/2012,Travel & Subsistence General Duty,Professional Library,Redfern Travel Ltd,Large,907792,48.75,Travel & Subsistence General Duty,Administration
Land Registry,Land Registry,12/11/2012,Travel & Subsistence General Duty,Projects and Programme Centre,Redfern Travel Ltd,Large,907792,1366.52,Travel & Subsistence General Duty,Administration
Land Registry,Land Registry,12/11/2012,Travel & Subsistence General Duty,Property Asset Management Group,Redfern Travel Ltd,Large,907792,1825.88,Travel & Subsistence General Duty,Administration
Land Registry,Land Registry,12/11/2012,Travel & Subsistence General Duty,Registration Legal Services Group,Redfern Travel Ltd,Large,907792,225.74,Travel & Subsistence General Duty,Administration
Land Registry,Land Registry,12/11/2012,Travel & Subsistence General Duty,Research & Data Mining,Redfern Travel Ltd,Large,907792,858.09,Travel & Subsistence General Duty,Administration
Land Registry,Land Registry,12/11/2012,Travel & Subsistence General Duty,Stakeholder Management,Redfern Travel Ltd,Large,907792,167.79,Travel & Subsistence General Duty,Administration
Land Registry,Land Registry,12/11/2012,Travel & Subsistence General Duty,Strategy Team,Redfern Travel Ltd,Large,907792,2240.03,Travel & Subsistence General Duty,Administration
Land Registry,Land Registry,12/11/2012,Travel & Subsistence General Duty,Survey & Mapping Services,Redfern Travel Ltd,Large,907792,1802.69,Travel & Subsistence General Duty,Administration
Land Registry,Land Registry,12/11/2012,Travel & Subsistence General Duty,Technical Assurance Group,Redfern Travel Ltd,Large,907792,111.26,Travel & Subsistence General Duty,Administration
Land Registry,Land Registry,12/11/2012,Travel & Subsistence General Duty,Telford Office,Redfern Travel Ltd,Large,907792,539.4,Travel & Subsistence General Duty,Administration
Land Registry,Land Registry,12/11/2012,Travel & Subsistence General Duty,Wales Office,Redfern Travel Ltd,Large,907792,309.19,Travel & Subsistence General Duty,Administration
Land Registry,Land Registry,12/11/2012,Travel & Subsistence General Duty,Weymouth Office,Redfern Travel Ltd,Large,907792,411.78,Travel & Subsistence General Duty,Administration
Land Registry,Land Registry,12/11/2012,Travel & Subsistence Overseas Travel,Corporate Legal Services,Redfern Travel Ltd,Large,907792,40.6,Travel & Subsistence Overseas Travel,Administration
Land Registry,Land Registry,12/11/2012,Travel & Subsistence Overseas Travel,Governance & Policy,Redfern Travel Ltd,Large,907792,476.1,Travel & Subsistence Overseas Travel,Administration
Land Registry,Land Registry,12/11/2012,Travel & Subsistence Overseas Travel,LR Sports Council,Redfern Travel Ltd,Large,907792,134.24,Travel & Subsistence Overseas Travel,Administration
Land Registry,Land Registry,13/12/2012,Letter Post,Birkenhead Office,Royal Mail,Large,909138,4677.98,Letter Post,Administration
Land Registry,Land Registry,13/12/2012,Letter Post,Central Facilities Management Team,Royal Mail,Large,909138,43.96,Letter Post,Administration
Land Registry,Land Registry,13/12/2012,Letter Post,Coventry Office,Royal Mail,Large,909138,5800.13,Letter Post,Administration
Land Registry,Land Registry,13/12/2012,Letter Post,Croydon Office,Royal Mail,Large,909138,3688.39,Letter Post,Administration
Land Registry,Land Registry,13/12/2012,Letter Post,Croydon Sub-Office,Royal Mail,Large,909138,286.34,Letter Post,Administration
Land Registry,Land Registry,13/12/2012,Letter Post,Durham Office,Royal Mail,Large,909138,7206.65,Letter Post,Administration
Land Registry,Land Registry,13/12/2012,Letter Post,Fylde Office,Royal Mail,Large,909138,6663.11,Letter Post,Administration
Land Registry,Land Registry,13/12/2012,Letter Post,Gloucester Office,Royal Mail,Large,909138,4775.18,Letter Post,Administration
Land Registry,Land Registry,13/12/2012,Letter Post,Hull Office,Royal Mail,Large,909138,2671.42,Letter Post,Administration
Land Registry,Land Registry,13/12/2012,Letter Post,IS Service Delivery,Royal Mail,Large,909138,16420.71,Letter Post,Administration
Land Registry,Land Registry,13/12/2012,Letter Post,Land Charges,Royal Mail,Large,909138,1211.67,Letter Post,Administration
Land Registry,Land Registry,13/12/2012,Letter Post,Leicester Office,Royal Mail,Large,909138,2894.91,Letter Post,Administration
Land Registry,Land Registry,13/12/2012,Letter Post,Nottingham Office,Royal Mail,Large,909138,5575.35,Letter Post,Administration
Land Registry,Land Registry,13/12/2012,Letter Post,Peterborough Office,Royal Mail,Large,909138,3067.07,Letter Post,Administration
Land Registry,Land Registry,13/12/2012,Letter Post,Plymouth Office,Royal Mail,Large,909138,3634.98,Letter Post,Administration
Land Registry,Land Registry,13/12/2012,Letter Post,Telford Office,Royal Mail,Large,909138,5268.45,Letter Post,Administration
Land Registry,Land Registry,13/12/2012,Letter Post,Wales Office,Royal Mail,Large,909138,8028.83,Letter Post,Administration
Land Registry,Land Registry,13/12/2012,Letter Post,Weymouth Office,Royal Mail,Large,909138,3255.33,Letter Post,Administration
Land Registry,Land Registry,21/12/2012,Rates Payable,Governance & Policy,South Hams District Council,Large,912622,4488,Rates Payable,Administration
Land Registry,Land Registry,20/12/2012,Computer Equipment Non HP Licences,IS Service Delivery,Specialist Computer Centres Plc - SCC,Large,911955,380744.43,Computer Equipment Non HP Licences,Administration
Land Registry,Land Registry,21/12/2012,Computer Equipment Purchases <1000,Central Operations Group,Steria Limited,Large,912624,45.31,Computer Equipment Purchases <1000,Administration
Land Registry,Land Registry,21/12/2012,Computer Equipment Purchases <1000,Gloucester Office,Steria Limited,Large,912624,410.28,Computer Equipment Purchases <1000,Administration
Land Registry,Land Registry,21/12/2012,Computer Equipment Purchases <1000,IS Service Delivery,Steria Limited,Large,912624,221.2,Computer Equipment Purchases <1000,Administration
Land Registry,Land Registry,21/12/2012,DITI Impact Change Controls Only,IS Service Delivery,Steria Limited,Large,912624,201000,Computer Managed Service Change Controls,Administration
Land Registry,Land Registry,21/12/2012,DITI Managed Service,IS Service Delivery,Steria Limited,Large,912624,1480171.22,Computer Managed Service,Administration
Land Registry,Land Registry,21/12/2012,DITI Printer Managed Service,IS Service Delivery,Steria Limited,Large,912624,70597.82,Computer Printer Managed Service,Administration
Land Registry,Land Registry,21/12/2012,Other External Training,Governance & Policy,Steria Limited,Large,912624,886.76,External Training,Administration
Land Registry,Land Registry,21/12/2012,Rates Payable,Property Asset Management Group,Stevenage Borough Council,Large,912625,30338,Rates Payable,Administration
Land Registry,Land Registry,18/12/2012,Property Maintenance,Dir: Operations,Telford & Wrekin Council,Large,910792,276669.7,Property Maintenance,Administration
Land Registry,Land Registry,21/12/2012,Rates Payable,Telford Office,Telford & Wrekin Council,Large,912627,25190,Rates Payable,Administration
Land Registry,Land Registry,20/12/2012,Rent Payable,Property Asset Management Group,Telford Properties 2003 Ltd,SME,911956,66771,Rent Payable,Administration
Land Registry,Land Registry,21/12/2012,Rates Payable,Gloucester Computer Centre,Tewkesbury Borough Council,Large,912628,10946,Rates Payable,Administration
Land Registry,Land Registry,12/05/2012,Maps & Plans Data Migration,Forward Scanning,TNT (UK) Ltd,Large,904528,227474.01,Maps & Plans Data Migration,Administration
Land Registry,Land Registry,20/12/2012,RFS Outsourced Services,Central RFS,TNT (UK) Ltd,Large,911958,289902.93,File Store Outsourced Services,Administration
Land Registry,Land Registry,20/12/2012,Rent Payable,Gloucester Office,Twyver Property Limited,SME,911960,176250,Rent Payable,Administration
Land Registry,Land Registry,12/05/2012,Rates Payable,Weymouth Office,West Dorset District Council,Large,904529,18549,Rates Payable,Administration
Land Registry,Land Registry,12/03/2012,Rates Payable,Birkenhead Office,Wirral Metrpolitan Borough Council,Large,902659,21690,Rates Payable,Administration
